bitfinex/quotes_SOLUSD_20250630
["timestamp","ask_amount","ask_price","bid_price","bid_amount"]
[1751290934453,14.8531699,150.99,150.96,5.35828883]
[1751290934716,14.8531699,150.99,150.95,5.35828883]
[1751290935109,14.8531699,150.99,150.96,5.35828883]
[1751290937609,14.8531699,150.99,150.93,32.62543382]
[1751290937814,14.8531699,150.99,150.96,5.35828883]
[1751290939332,8.2302,150.99,150.97,5.35828883]
[1751290939507,6.6206,150.99,150.98,5.35828883]
[1751290940231,6.6206,150.99,150.97,5.35828883]
[1751290942742,0.1,150.99,150.98,5.35828883]
[1751290944322,0.1,150.99,150.97,5.35828883]
[1751290944710,6.72305911,150.99,150.97,5.35828883]
[1751290944913,6.72305911,150.99,150.95,6.62450564]
[1751290945135,6.72305911,150.99,150.97,5.35828883]
[1751290945830,12.08134794,150.99,150.93,6.6253379]
[1751290946042,5.35828883,150.98,150.94,5.35828883]
[1751290946232,12.08134794,150.99,150.95,5.35828883]
[1751290946618,6.72305911,150.99,150.95,5.35828883]
[1751290946818,12.08134794,150.99,150.95,5.35828883]
[1751290947448,5.35828883,150.98,150.92,6.62582644]
[1751290947738,12.08134794,150.99,150.95,5.35828883]
[1751290948037,6.72305911,150.99,150.96,5.35828883]
[1751290948412,12.08134794,150.99,150.95,5.35828883]
[1751290949051,24.00793769,150.98,150.91,32.82630279]
[1751290949336,5.35828883,150.97,150.93,5.35828883]
[1751290949535,24.00793769,150.98,150.93,5.35828883]
[1751290949844,11.41268883,150.97,150.91,13.02630279]
[1751290950134,18.03676301,150.97,150.93,5.35828883]
[1751290950634,12.67847418,150.97,150.93,5.35828883]
[1751290950836,18.03676301,150.97,150.93,5.35828883]
[1751290952614,18.03676301,150.97,150.91,13.02630279]
[1751290952929,18.03676301,150.97,150.93,5.35828883]
[1751290954745,5.35828883,150.95,150.91,11.75828883]
[1751290954944,11.98308663,150.95,150.91,11.75828883]
[1751290955152,5.35828883,150.94,150.91,0.2]
[1751290955322,11.98308663,150.95,150.91,0.2]
[1751290955528,5.35828883,150.94,150.91,0.2]
[1751290956455,11.98308663,150.95,150.91,0.2]
[1751290957430,6.6247978,150.95,150.92,5.35828883]
[1751290959555,11.98308663,150.95,150.91,5.55828883]
[1751290960337,11.98308663,150.95,150.91,0.2]
[1751290960338,24.00793769,150.94,150.91,0.2]
[1751290960952,11.98387685,150.93,150.91,0.2]
[1751290961151,24.00793769,150.92,150.91,0.2]
[1751290963484,30.63396472,150.92,150.91,0.2]
[1751290963771,38.51776472,150.92,150.91,0.2]
[1751290964273,33.15947589,150.92,150.91,0.2]
[1751290964445,38.51776472,150.92,150.91,0.2]
[1751290965144,38.80208786,150.92,150.91,0.2]
[1751290970073,26.53344886,150.92,150.91,0.2]
[1751290970248,6.62530218,150.94,150.91,5.55828883]
[1751290970443,6.62489861,150.95,150.92,5.35828883]
[1751290972353,11.98318744,150.95,150.91,5.55828883]
[1751290973293,6.62339382,150.98,150.94,5.35828883]
[1751290973461,6.72312368,150.99,150.96,5.35828883]
[1751290973655,18.64964886,150.98,150.96,5.35828883]
[1751290973865,6.72312368,150.99,150.96,5.35828883]
[1751290974185,0.1,150.99,150.97,5.35828883]
[1751290974767,6.72299916,150.99,150.96,5.35828883]
[1751290976882,6.72299916,150.99,150.97,5.35828883]
[1751290977180,0.1,150.99,150.98,5.35828883]
[1751290979379,0.1,150.99,150.97,5.35828883]
[1751290979682,6.72298631,150.99,150.96,5.35828883]
[1751290980275,0.1,150.99,150.96,5.35828883]
[1751290981185,0.1,150.99,150.98,5.35828883]
[1751290982682,0.1,150.99,150.96,26.0]
[1751290982868,0.1,150.99,150.95,1.5806]
[1751290982869,0.1,150.99,150.97,5.35828883]
[1751290983260,0.1,150.99,150.98,5.35828883]
[1751290985987,0.1,150.99,150.97,5.35828883]
[1751290986280,0.1,150.99,150.98,5.35828883]
[1751290988068,0.1,150.99,150.98,11.98168265]
[1751290989184,0.1,150.99,150.98,45.72348265]
[1751290989766,0.1,151.02,150.99,0.28432314]
[1751290989965,0.1,151.02,151.01,5.35828883]
[1751290991064,0.1,151.02,151.0,6.62251655]
[1751290991290,0.1,151.02,151.01,5.35828883]
[1751290992081,0.1,151.02,151.01,11.98036683]
[1751290992899,0.1,151.02,151.01,38.26468997]
[1751290993187,0.1,151.04,151.03,26.28432314]
[1751290993400,0.1,151.04,151.03,31.35828883]
[1751290994273,0.1,151.04,151.03,37.97948991]
[1751290996377,0.1,151.04,151.03,43.62210188]
[1751290996768,0.1,151.04,151.03,38.26381305]
[1751290997597,0.1,151.04,151.03,32.90552422]
[1751290997768,0.1,151.04,151.03,63.79915074]
[1751290997967,0.1,151.05,151.04,0.28432314]
[1751290998190,0.1,151.05,151.04,11.0009008]
[1751290998572,0.1,151.05,151.04,17.62166351]
[1751290998977,0.1,151.05,151.04,17.47950194]
[1751290999294,0.1,151.09,151.05,44.79181043]
[1751290999482,0.1,151.09,151.08,5.5004504]
[1751290999675,0.1,151.09,151.08,5.35828883]
[1751291000282,0.1,151.09,151.08,5.5004504]
[1751291000789,0.1,151.09,151.08,38.11946019]
[1751291000988,0.1,151.09,151.08,38.26162176]
[1751291001189,0.1,151.1,151.09,1.84202314]
[1751291001397,0.1,151.15,151.09,1.84202314]
[1751291001398,0.1,151.15,151.11,31.35828883]
[1751291002202,0.1,151.15,151.11,31.64261197]
[1751291002381,0.1,151.15,151.11,31.35828883]
[1751291002698,0.1,151.15,151.11,37.97598454]
[1751291004600,0.1,151.15,151.11,5.35828883]
[1751291004802,5.35828883,151.14,151.1,5.35828883]
[1751291005101,5.45828883,151.12,151.08,11.49828883]
[1751291005295,5.35828883,151.11,151.08,6.14]
[1751291005875,18.37464921,151.12,151.08,11.49828883]
[1751291007007,6.399,151.12,151.09,5.35828883]
[1751291007410,6.399,151.12,151.1,5.35828883]
[1751291007591,0.1,151.12,151.08,12.75900236]
[1751291007910,0.1,151.12,151.1,5.35828883]
[1751291008603,0.1,151.12,151.09,5.35828883]
[1751291008800,6.71726047,151.12,151.08,11.97729119]
[1751291009399,0.1,151.12,151.08,11.97729119]
[1751291010388,0.1,151.12,151.09,5.35828883]
[1751291011202,6.71733128,151.12,151.09,5.35828883]
[1751291011383,0.1,151.12,151.09,5.35828883]
[1751291011986,12.07573693,151.12,151.08,5.35828883]
[1751291012198,5.35828883,151.11,151.06,31.35828883]
[1751291012404,5.35828883,151.11,151.07,5.35828883]
[1751291012708,12.07573693,151.12,151.07,5.35828883]
[1751291013011,6.7174481,151.12,151.08,5.35828883]
[1751291013418,6.7174481,151.12,151.09,5.35828883]
[1751291014322,12.07573693,151.12,151.06,32.61974502]
[1751291014517,12.07573693,151.12,151.07,5.35828883]
[1751291014814,6.7174481,151.12,151.08,5.35828883]
[1751291015014,0.1,151.12,151.11,5.35828883]
[1751291016410,0.1,151.12,151.09,6.61839526]
[1751291016617,0.1,151.12,151.1,5.35828883]
[1751291016924,0.1,151.12,151.08,6.61886997]
[1751291017113,0.1,151.12,151.08,11.9771588]
[1751291017114,6.7173303,151.12,151.08,11.9771588]
[1751291017414,0.1,151.12,151.08,5.35828883]
[1751291017591,0.1,151.12,151.09,5.35828883]
[1751291017992,6.71730691,151.12,151.08,5.35828883]
[1751291018494,6.71730691,151.12,151.06,120.21981764]
[1751291018694,6.71730691,151.12,151.08,5.35828883]
[1751291019114,6.71730691,151.12,151.09,5.35828883]
[1751291019815,0.1,151.12,151.09,5.35828883]
[1751291020916,0.1,151.12,151.06,113.6]
[1751291020917,5.35828883,151.1,151.06,87.6]
[1751291021123,6.61900979,151.08,151.04,5.35828883]
[1751291021506,11.77702637,151.09,151.04,11.97891034]
[1751291021714,11.77702637,151.09,151.04,5.35828883]
[1751291022198,11.77702637,151.09,151.03,0.2]
[1751291022199,5.35828883,151.07,151.03,0.2]
[1751291022400,5.35828883,151.07,151.03,5.55828883]
[1751291022698,5.35828883,151.07,151.03,0.2]
[1751291023202,11.97817496,151.06,151.03,0.2]
[1751291024027,5.35828883,151.05,151.03,0.2]
[1751291025226,11.97905154,151.04,151.03,0.2]
[1751291025432,11.97878071,151.05,151.03,0.2]
[1751291026714,13.23578883,151.04,151.03,0.2]
[1751291027626,31.88543769,151.04,151.03,0.2]
[1751291028226,26.52714886,151.04,151.03,0.2]
[1751291028441,31.88543769,151.04,151.03,0.2]
[1751291028811,38.5062004,151.04,151.03,0.2]
[1751291030914,38.79052354,151.04,151.03,0.2]
[1751291031928,18.933972,151.03,150.97,0.2]
[1751291032111,5.35828883,151.0,150.97,0.2]
[1751291032316,44.64964886,151.03,150.97,0.2]
[1751291032513,50.00793769,151.03,150.99,5.35828883]
[1751291032712,6.62163951,151.02,150.97,0.2]
[1751291032924,5.35828883,151.0,150.97,0.2]
[1751291034513,5.35828883,150.99,150.97,0.2]
[1751291034708,11.98168265,150.98,150.97,0.2]
[1751291035932,30.63133151,150.98,150.97,0.2]
[1751291036138,37.06283151,150.98,150.97,0.2]
[1751291037146,38.69653151,150.98,150.97,0.2]
[1751291040238,38.98085465,150.98,150.97,0.2]
[1751291040641,38.69653151,150.98,150.97,0.2]
[1751291040820,38.83869308,150.98,150.97,0.2]
[1751291041015,64.98085465,150.98,150.97,0.2]
[1751291042238,44.33914348,150.98,150.97,0.2]
[1751291042437,29.65054966,150.97,150.96,0.2]
[1751291042615,18.64964886,150.93,150.91,0.2]
[1751291042809,11.98431586,150.92,150.91,0.2]
[1751291043237,37.09096472,150.92,150.91,0.2]
[1751291043438,38.75556472,150.92,150.91,0.2]
[1751291044254,65.03988786,150.92,150.91,0.2]
[1751291044441,39.03988786,150.92,150.91,0.2]
[1751291045348,18.64964886,150.88,150.85,0.2]
[1751291045652,5.35828883,150.86,150.85,0.2]
[1751291045828,24.00793769,150.88,150.85,0.2]
[1751291046240,5.35828883,150.87,150.85,0.2]
[1751291046814,5.35828883,150.86,150.85,0.2]
[1751291047121,11.98695116,150.86,150.85,0.2]
[1751291047334,24.00793769,150.88,150.85,0.2]
[1751291047722,30.63591006,150.88,150.85,0.2]
[1751291047916,5.35828883,150.87,150.85,0.2]
[1751291048119,5.35828883,150.86,150.85,0.2]
[1751291048642,24.00793769,150.86,150.85,0.2]
[1751291049018,56.63660002,150.86,150.85,0.2]
[1751291049218,64.38810002,150.86,150.85,0.2]
[1751291050958,50.74684886,150.86,150.85,0.2]
[1751291051131,6.62832974,150.87,150.85,0.2]
[1751291051132,18.64964886,150.87,150.85,0.2]
[1751291052526,24.00793769,150.87,150.85,0.2]
[1751291053048,30.63651396,150.87,150.85,0.2]
[1751291053951,25.27822513,150.87,150.85,0.2]
[1751291054268,11.98588331,150.89,150.85,0.2]
[1751291054607,18.64964886,150.9,150.87,5.35828883]
[1751291055424,25.27656327,150.9,150.87,5.35828883]
[1751291058050,6.62650091,150.91,150.87,5.35828883]
[1751291058459,6.62650091,150.91,150.88,5.35828883]
[1751291059072,24.00793769,150.9,150.86,5.35828883]
[1751291060460,5.35828883,150.88,150.85,0.2]
[1751291060963,11.98628768,150.88,150.85,0.2]
[1751291061859,24.00793769,150.86,150.85,0.2]
[1751291062954,30.58660002,150.86,150.85,0.2]
[1751291063151,23.95793769,150.86,150.85,0.2]
[1751291063346,7.9198,150.92,150.85,12.1872623]
[1751291063550,7.9198,150.92,150.87,5.35828883]
[1751291063745,6.62592283,150.93,150.89,5.35828883]
[1751291063954,32.62592283,150.93,150.89,5.35828883]
[1751291064668,11.98355399,150.94,150.89,5.35828883]
[1751291064865,18.64964886,150.93,150.9,5.35828883]
[1751291065067,18.64964886,150.95,150.92,5.35828883]
[1751291065774,18.64964886,150.95,150.92,8.93733889]
[1751291066345,25.27440302,150.95,150.91,8.93733889]
[1751291066773,18.64964886,150.95,150.91,6.62643152]
[1751291066941,18.64964886,150.95,150.92,8.93733889]
[1751291067468,25.27446799,150.95,150.91,8.93733889]
[1751291067770,18.64964886,150.95,150.92,8.93733889]
[1751291067969,26.0,150.96,150.92,8.93733889]
[1751291068352,18.64964886,150.95,150.92,8.93733889]
[1751291068551,18.64964886,150.95,150.92,15.56328327]
[1751291069478,18.64964886,150.97,150.93,8.93733889]
[1751291069652,27.58698775,150.97,150.93,8.93733889]
[1751291070349,18.64964886,150.97,150.95,8.93733889]
[1751291070567,0.1,150.98,150.96,8.93733889]
[1751291070867,0.1,150.98,150.95,8.93733889]
[1751291072668,6.72340863,150.98,150.95,8.93733889]
[1751291073075,0.1,150.98,150.95,8.93733889]
[1751291073254,0.1,150.98,150.95,15.56201589]
[1751291074056,0.1,150.98,150.95,8.93733889]
[1751291074378,0.1,150.98,150.94,15.56246332]
[1751291074755,0.1,150.98,150.95,8.93733889]
[1751291075667,0.1,150.98,150.95,15.5619234]
[1751291075855,0.1,150.98,150.96,8.93733889]
[1751291076059,0.1,150.98,150.95,8.93733889]
[1751291076358,0.1,150.98,150.95,15.56203733]
[1751291077677,0.1,150.98,150.95,8.93733889]
[1751291077887,0.1,150.98,150.94,8.93733889]
[1751291078271,0.1,150.98,150.95,8.93733889]
[1751291078763,6.7234095,150.98,150.95,8.93733889]
[1751291079187,0.1,150.98,150.95,8.93733889]
[1751291079386,27.58698775,150.97,150.93,8.93733889]
[1751291079894,18.64964886,150.97,150.93,15.56282184]
[1751291081791,34.21087581,150.97,150.93,8.93733889]
[1751291082375,34.21087581,150.97,150.92,6.62587346]
[1751291082695,34.21087581,150.97,150.93,8.93733889]
[1751291082887,34.21087581,150.97,150.9,16.56718555]
[1751291083088,34.21087581,150.97,150.93,8.93733889]
[1751291083296,25.27353692,150.97,150.93,8.93733889]
[1751291083600,34.21087581,150.97,150.93,8.93733889]
[1751291083900,32.7765568,150.97,150.93,8.93733889]
[1751291084079,23.83921791,150.97,150.93,8.93733889]
[1751291084281,0.1,150.98,150.95,8.93733889]
[1751291084983,15.66080678,150.98,150.94,8.93733889]
[1751291085174,8.93733889,150.97,150.93,8.93733889]
[1751291085594,15.66080678,150.98,150.93,8.93733889]
[1751291085907,18.64964886,150.97,150.94,5.36141312]
[1751291086075,0.1,150.98,150.95,5.36141312]
[1751291086403,18.74964886,150.98,150.95,5.36141312]
[1751291086600,0.1,150.98,150.96,5.36141312]
[1751291088200,0.1,150.98,150.97,5.36141312]
[1751291089101,0.1,150.98,150.96,5.36141312]
[1751291090315,0.1,150.98,150.95,11.98582898]
[1751291090684,0.1,150.98,150.95,5.36141312]
[1751291091207,12.08499112,150.98,150.93,5.36141312]
[1751291091387,12.08499112,150.98,150.91,87.6]
[1751291091388,12.08499112,150.98,150.94,5.36141312]
[1751291092598,12.08499112,150.98,150.92,6.62579006]
[1751291092808,12.08499112,150.98,150.94,5.36141312]
[1751291093006,12.08499112,150.98,150.92,6.62579006]
[1751291093200,18.64964886,150.96,150.92,5.36141312]
[1751291094017,18.64964886,150.96,150.93,5.36141312]
[1751291095203,6.62427014,150.97,150.93,5.36141312]
[1751291095404,6.62427014,150.97,150.94,5.36141312]
[1751291096016,24.11106198,150.98,150.89,6.62734442]
[1751291096017,6.62471016,150.95,150.89,6.62734442]
[1751291096335,18.64964886,150.94,150.91,5.36141312]
[1751291097232,18.64964886,150.95,150.92,5.36141312]
[1751291097600,18.64964886,150.95,150.88,1.6641]
[1751291097793,18.64964886,150.95,150.92,5.36141312]
[1751291098998,25.27444713,150.95,150.92,5.36141312]
[1751291099661,25.27444713,150.95,150.88,1.6641]
[1751291099792,25.27444713,150.95,150.91,5.36141312]
[1751291099997,5.36141312,150.94,150.9,5.36141312]
[1751291100510,32.17326025,150.95,150.91,5.36141312]
[1751291100702,32.17326025,150.95,150.9,5.36141312]
[1751291100912,11.98676073,150.94,150.9,5.36141312]
[1751291101116,6.62534761,150.94,150.9,5.36141312]
[1751291102032,6.62534761,150.94,150.91,5.36141312]
[1751291102726,6.62534761,150.94,150.9,5.36141312]
[1751291103305,32.17334796,150.95,150.91,35.36141312]
[1751291104741,32.17334796,150.95,150.91,30.72282624]
[1751291106035,32.17334796,150.95,150.91,25.36141312]
[1751291107041,5.36141312,150.94,150.91,25.36141312]
[1751291107835,24.01106198,150.93,150.89,5.36141312]
[1751291108046,18.64964886,150.93,150.9,30.0]
[1751291108927,30.63699448,150.93,150.9,30.0]
[1751291109243,1.5374,150.95,150.92,5.36141312]
[1751291109638,18.64964886,150.95,150.92,5.36141312]
[1751291109936,18.64964886,150.97,150.94,5.36141312]
[1751291110344,24.01106198,150.97,150.93,5.36141312]
[1751291110715,6.2835,150.98,150.95,5.36141312]
[1751291110910,0.1,150.98,150.97,5.36141312]
[1751291112625,0.1,150.98,150.96,6.62411675]
[1751291112826,0.1,150.98,150.97,11.98524566]
[1751291113025,0.1,150.98,150.97,12.2695688]
[1751291114146,0.1,150.98,150.97,42.2695688]
[1751291114318,0.1,150.98,150.97,43.8967688]
[1751291114727,0.1,151.05,150.97,60.45635017]
[1751291114940,0.1,151.05,151.04,5.36141312]
[1751291115629,0.1,151.05,150.98,23.38]
[1751291115941,0.1,151.05,151.04,5.36141312]
[1751291117150,6.72032439,151.05,151.04,5.36141312]
[1751291117340,6.72032439,151.05,150.99,56.0]
[1751291117543,5.36141312,151.04,151.0,5.36141312]
[1751291118129,12.08173751,151.05,151.0,5.36141312]
[1751291118330,12.08173751,151.05,151.01,5.36141312]
[1751291119054,24.01106198,151.04,150.99,5.36141312]
[1751291119237,5.36141312,151.03,150.99,5.36141312]
[1751291120254,6.62163951,151.02,150.99,5.36141312]
[1751291120456,6.62163951,151.02,150.97,6.62367139]
[1751291120754,6.62163951,151.02,150.99,5.36141312]
[1751291121153,1.7202,151.05,151.01,5.36141312]
[1751291121348,8.34066663,151.05,151.02,5.36141312]
[1751291121541,0.1,151.05,151.03,5.36141312]
[1751291121738,0.1,151.05,151.04,5.36141312]
[1751291121941,0.1,151.05,151.0,26.0]
[1751291122139,0.1,151.05,151.01,5.36141312]
[1751291122864,0.1,151.05,150.97,49.46773705]
[1751291122865,0.1,151.05,151.02,5.36141312]
[1751291123046,0.1,151.05,151.04,5.36141312]
[1751291125962,0.1,151.05,150.99,23.18024846]
[1751291126166,5.46141312,151.05,151.01,5.36141312]
[1751291126368,0.1,151.05,151.01,5.36141312]
[1751291126667,0.1,151.05,151.04,5.36141312]
[1751291130773,0.1,151.05,151.04,11.98217583]
[1751291131753,0.1,151.05,151.04,6.62076271]
[1751291132077,0.1,151.05,151.04,11.98217583]
[1751291132565,0.1,151.05,151.04,5.36141312]
[1751291135952,0.1,151.05,151.0,6.62251655]
[1751291136163,5.36141312,151.04,150.99,6.62281127]
[1751291136473,5.46141312,151.05,150.99,6.62281127]
[1751291136664,12.08180386,151.05,151.01,5.36141312]
[1751291138459,6.72039074,151.05,151.01,5.36141312]
[1751291138667,12.08180386,151.05,151.01,5.36141312]
[1751291139082,5.46141312,151.05,151.01,11.98339199]
[1751291139571,0.1,151.05,151.03,5.36141312]
[1751291140370,0.1,151.05,150.98,23.18089371]
[1751291140584,0.1,151.05,151.02,5.36141312]
[1751291141263,6.72043819,151.05,151.01,5.36141312]
[1751291141572,0.1,151.05,151.01,5.36141312]
[1751291141771,5.36141312,151.04,151.0,5.36141312]
[1751291142088,5.36141312,151.03,150.99,5.36141312]
[1751291142257,5.36141312,151.02,150.97,32.62377172]
[1751291142462,30.63244326,151.03,150.99,5.36141312]
[1751291142774,25.27103014,151.03,150.99,5.36141312]
[1751291143161,30.63244326,151.03,150.99,5.36141312]
[1751291143575,30.63244326,151.03,150.98,6.6233001]
[1751291143576,30.63244326,151.03,150.98,5.36141312]
[1751291143764,5.36141312,151.02,150.97,11.98504712]
[1751291144575,11.98311708,151.02,150.97,6.623634]
[1751291144783,5.36141312,151.01,150.97,5.36141312]
[1751291145285,11.98311708,151.02,150.98,5.36141312]
[1751291145481,11.98311708,151.02,150.97,5.36141312]
[1751291145992,5.36141312,151.0,150.95,5.36141312]
[1751291146693,25.63326198,151.01,150.96,5.36141312]
[1751291147697,32.2555539,151.01,150.96,11.98563485]
[1751291148397,26.89414078,151.01,150.97,5.36141312]
[1751291148559,32.2555539,151.01,150.97,5.36141312]
[1751291148762,26.89414078,151.01,150.97,5.36141312]
[1751291148963,1.6222,151.01,150.98,5.36141312]
[1751291149258,25.27095643,151.03,150.99,5.36141312]
[1751291149462,30.63236955,151.03,150.99,5.36141312]
[1751291150398,25.27095643,151.03,150.99,5.36141312]
[1751291150575,6.248,151.04,151.0,5.36141312]
[1751291151302,6.248,151.04,151.02,5.36141312]
[1751291152394,1.7432,151.05,151.02,5.36141312]
[1751291152606,1.7432,151.05,151.01,6.62186277]
[1751291152765,1.7432,151.05,151.02,5.36141312]
[1751291153082,8.36355786,151.05,150.98,6.62339382]
[1751291153281,13.72497098,151.05,151.0,5.36141312]
[1751291153485,5.36141312,151.04,151.0,5.36141312]
[1751291154070,13.72497098,151.05,151.0,5.36141312]
[1751291154271,13.72497098,151.05,151.01,5.36141312]
[1751291154481,1.7432,151.05,151.03,5.36141312]
[1751291154682,0.1,151.05,151.04,5.36141312]
[1751291156275,0.1,151.05,151.04,11.98217583]
[1751291158569,0.1,151.05,151.04,5.36141312]
[1751291158974,0.1,151.09,151.04,17.34358895]
[1751291159183,0.1,151.09,151.08,5.36141312]
[1751291159898,0.1,151.09,151.08,11.98042291]
[1751291160470,0.1,151.09,151.08,12.26474605]
[1751291160690,0.1,151.12,151.08,12.26474605]
[1751291160691,0.1,151.12,151.11,26.28432314]
[1751291160888,0.1,151.15,151.12,0.28432314]
[1751291161191,0.1,151.15,151.11,36.72282624]
[1751291161192,0.1,151.15,151.14,5.36141312]
[1751291161392,0.1,151.15,151.13,11.38141312]
[1751291161596,0.1,151.15,151.14,5.36141312]
[1751291161794,0.1,151.15,151.11,32.6176936]
[1751291161994,0.1,151.15,151.13,5.36141312]
[1751291162178,0.1,151.15,151.12,5.36141312]
[1751291162385,0.1,151.15,151.13,5.36141312]
[1751291163902,0.1,151.15,151.12,5.36141312]
[1751291164400,6.71601309,151.15,151.12,5.36141312]
[1751291164978,0.1,151.15,151.12,5.36141312]
[1751291165173,6.71595061,151.15,151.04,110.5046194]
[1751291165370,5.36141312,151.13,151.06,6.02]
[1751291165597,26.87524886,151.14,151.06,6.02]
[1751291165598,5.36141312,151.12,151.08,5.36141312]
[1751291165912,5.36141312,151.1,151.06,11.38141312]
[1751291166116,24.01106198,151.11,151.06,11.38141312]
[1751291166410,24.01106198,151.11,151.07,5.36141312]
[1751291166775,18.64964886,151.11,151.07,5.36141312]
[1751291167596,8.2256,151.14,151.06,12.63984681]
[1751291167898,5.36141312,151.13,151.08,5.36141312]
[1751291168102,5.36141312,151.12,151.08,5.36141312]
[1751291168402,14.84210051,151.14,151.07,5.36141312]
[1751291168403,5.36141312,151.11,151.07,5.36141312]
[1751291168602,31.38305591,151.14,151.07,5.36141312]
[1751291168783,5.36141312,151.11,151.07,5.36141312]
[1751291170613,11.97912904,151.11,151.07,5.36141312]
[1751291173687,5.36141312,151.12,151.07,5.36141312]
[1751291173891,6.6173532,151.12,151.09,5.36141312]
[1751291174202,6.6173532,151.12,151.07,6.61936753]
[1751291174203,6.6173532,151.12,151.08,5.36141312]
[1751291174503,11.97876632,151.12,151.08,5.36141312]
[1751291176518,5.36141312,151.12,151.08,11.98037389]
[1751291177086,5.36141312,151.12,151.08,6.61896077]
[1751291177286,11.97875013,151.12,151.08,5.36141312]
[1751291178422,18.64964886,151.13,151.08,5.36141312]
[1751291178423,18.64964886,151.13,151.08,6.61900147]
[1751291178617,24.01106198,151.13,151.08,11.98041459]
[1751291178916,11.97855221,151.13,151.09,5.36141312]
[1751291179290,0.1,151.15,151.12,5.36141312]
[1751291179485,0.1,151.15,151.14,5.36141312]
[1751291180605,0.1,151.15,151.13,6.61669095]
[1751291180807,0.1,151.15,151.14,5.36141312]
[1751291182413,0.1,151.15,151.13,5.36141312]
[1751291182593,0.1,151.15,151.09,32.02]
[1751291182794,0.1,151.15,151.12,5.36141312]
[1751291183111,0.1,151.15,151.11,5.36141312]
[1751291183487,6.71617542,151.15,151.11,5.36141312]
[1751291183894,6.71617542,151.15,151.11,11.97910406]
[1751291184097,6.71599267,151.15,151.12,5.36141312]
[1751291184608,6.71599267,151.15,151.1,6.6179555]
[1751291184819,6.71599267,151.15,151.12,5.36141312]
[1751291184984,12.07740579,151.15,151.11,5.36141312]
[1751291185691,6.71599267,151.15,151.11,5.36141312]
[1751291186001,6.71599267,151.15,151.1,6.61777743]
[1751291186002,5.36141312,151.13,151.09,37.38141312]
[1751291186912,24.01106198,151.14,151.09,37.38141312]
[1751291187108,24.01106198,151.14,151.09,43.99995318]
[1751291187816,30.62781602,151.14,151.09,43.99995318]
[1751291189590,30.62781602,151.14,151.1,5.36141312]
[1751291190189,0.1,151.15,151.12,5.36141312]
[1751291190389,0.1,151.15,151.13,5.36141312]
[1751291192199,0.1,151.15,151.14,5.36141312]
[1751291193297,0.1,151.15,151.11,6.61769571]
[1751291193509,6.71599599,151.15,151.11,5.36141312]
[1751291193817,5.46141312,151.15,151.11,11.9790544]
[1751291194124,5.36141312,151.13,151.09,5.36141312]
[1751291194496,5.36141312,151.13,151.08,100.21885631]
[1751291194700,5.36141312,151.12,151.08,6.0]
[1751291194920,5.36141312,151.12,151.08,12.61891249]
[1751291195329,5.36141312,151.1,151.08,6.0]
[1751291197311,11.97971496,151.1,151.08,6.0]
[1751291197825,5.36141312,151.1,151.08,6.0]
[1751291199027,11.9796027,151.1,151.08,6.0]
[1751291199405,11.9796027,151.1,151.03,131.76815608]
[1751291199406,5.36141312,151.09,151.03,115.2152]
[1751291199605,5.36141312,151.09,151.02,6.0]
[1751291199606,5.36141312,151.06,151.02,6.0]
[1751291200236,5.36141312,151.03,151.02,6.0]
[1751291200419,5.36141312,151.03,150.98,32.04369044]
[1751291200619,5.36141312,151.02,150.98,32.04369044]
[1751291201313,5.36141312,151.02,150.98,26.68227732]
[1751291201523,5.36141312,151.02,150.98,38.66699589]
[1751291201733,5.36141312,151.03,150.99,5.36141312]
[1751291201906,5.36141312,151.03,150.98,33.30558277]
[1751291201907,18.64964886,151.04,151.0,8.9288318]
[1751291202102,27.57848066,151.04,150.99,15.55171928]
[1751291202330,8.9288318,151.03,150.99,15.55171928]
[1751291203322,8.9288318,151.03,150.99,6.62288748]
[1751291203633,8.9288318,151.04,151.0,8.9288318]
[1751291204046,8.9288318,151.04,150.99,6.62288748]
[1751291204212,8.9288318,151.03,150.99,15.55171928]
[1751291204628,8.9288318,151.04,150.99,15.55171928]
[1751291205011,8.9288318,151.04,151.0,8.9288318]
[1751291205213,15.4726318,151.05,151.01,8.9288318]
[1751291205510,6.5438,151.05,151.02,15.55047131]
[1751291205705,27.57848066,151.07,151.03,8.9288318]
[1751291206136,27.57848066,151.07,151.02,15.55047131]
[1751291206344,8.9288318,151.06,151.02,15.55047131]
[1751291207432,8.9288318,151.06,151.02,6.62163951]